fUST/lending_fUST_20240721
["ID","MTS","AMOUNT","RATE_DAILY","PERIOD"]
[332781182,1721518250971,-508.7950236,0.00013972,2]
[332781183,1721518250983,-500.0,0.00013972,2]
[332781184,1721518250992,-502.36816493,0.00013972,2]
[332781185,1721518251002,-500.0,0.00013972,2]
[332781186,1721518251013,-500.0,0.00013972,2]
[332781187,1721518251025,-500.0,0.00013972,2]
[332781188,1721518251036,-513.24561122,0.00013972,2]
[332781189,1721518251047,-644.94,0.00013972,2]
[332781190,1721518251057,-500.0,0.00013972,2]
[332781191,1721518251067,-791.54,0.00013972,2]
[332781192,1721518251077,-500.0,0.00013972,2]
[332781193,1721518251087,-500.0,0.00013972,2]
[332781194,1721518251096,-500.0,0.00013972,2]
[332781195,1721518251106,-1819.62,0.00013972,2]
[332781196,1721518251115,-500.0,0.00013972,2]
[332781197,1721518251126,-500.0,0.00013972,2]
[332781198,1721518251136,-500.0,0.00013972,2]
[332781199,1721518251145,-500.0,0.00013972,2]
[332781200,1721518251155,-555.28,0.00013972,2]
[332781201,1721518251167,-797.72,0.00013972,2]
[332781202,1721518251177,-500.0,0.00013972,2]
[332781203,1721518251187,-302.496175,0.00013972,2]
[332781204,1721518251198,-302.496175,0.00013972,2]
[332781205,1721518251210,-515.7897912,0.00013972,2]
[332781206,1721518251221,-302.496175,0.00013972,2]
[332781207,1721518251233,-500.0,0.00013972,2]
[332781208,1721518251242,-555.5,0.00013972,2]
[332781209,1721518251253,-500.0,0.00013972,2]
[332781210,1721518251264,-302.496175,0.00013972,2]
[332781211,1721518251275,-302.496175,0.00013972,2]
[332781212,1721518251287,-302.496175,0.00013972,2]
[332781213,1721518251299,-500.0,0.00013972,2]
[332781214,1721518251310,-500.0,0.00013972,2]
[332781215,1721518251321,-500.0,0.00013972,2]
[332781216,1721518251332,-500.0,0.00013972,2]
[332781217,1721518251343,-545.35,0.00013972,2]
[332781218,1721518251355,-500.0,0.00013972,2]
[332781219,1721518251367,-500.0,0.00013972,2]
[332781220,1721518251380,-223.886275,0.00013972,2]
[332781221,1721518251390,-223.886275,0.00013972,2]
[332781222,1721518251400,-500.0,0.00013972,2]
[332781223,1721518251412,-859.26,0.00013972,2]
[332781224,1721518251425,-223.886275,0.00013972,2]
[332781225,1721518251435,-223.886275,0.00013972,2]
[332781226,1721518251448,-500.0,0.00013972,2]
[332781227,1721518251458,-500.0,0.00013972,2]
[332781228,1721518251470,-500.0,0.00013972,2]
[332781229,1721518251481,-867.9,0.00013972,2]
[332781230,1721518251491,-1135.52,0.00013972,2]
[332781231,1721518251502,-500.0,0.00013972,2]
[332781232,1721518251512,-500.0,0.00013972,2]
[332781233,1721518251524,-500.0,0.00013972,2]
[332781234,1721518251534,-500.0,0.00013972,2]
[332781235,1721518251546,-1692.13,0.00013972,2]
[332781236,1721518251557,-907.91,0.00013972,2]
[332781237,1721518251568,-500.0,0.00013972,2]
[332781238,1721518251579,-508.33268368,0.00013972,2]
[332781239,1721518251590,-500.0,0.00013972,2]
[332781240,1721518251602,-501.09350504,0.00013972,2]
[332781241,1721518251612,-500.0,0.00013972,2]
[332781242,1721518251776,-500.0,0.00013972,2]
[332781243,1721518251808,-836.33,0.00013972,2]
[332781244,1721518251819,-500.0,0.00013972,2]
[332781245,1721518251828,-500.0,0.00013972,2]
[332781246,1721518251838,-500.0,0.00013972,2]
[332781247,1721518251847,-1029.32,0.00013972,2]
[332781248,1721518251857,-500.0,0.00013972,2]
[332781249,1721518251867,-500.0,0.00013972,2]
[332781250,1721518251876,-1609.23,0.00013972,2]
[332781251,1721518251886,-500.0,0.00013972,2]
[332781252,1721518251896,-500.0,0.00013972,2]
[332781253,1721518251906,-500.0,0.00013972,2]
[332781254,1721518251917,-2605.92,0.00013972,2]
[332781255,1721518251928,-500.0,0.00013972,2]
[332781256,1721518251939,-500.0,0.00013972,2]
[332781257,1721518251950,-500.0,0.00013972,2]
[332781258,1721518251960,-1892.2,0.00013972,2]
[332781259,1721518251970,-500.0,0.00013972,2]
[332781260,1721518251982,-553.54,0.00013972,2]
[332781261,1721518251992,-500.0,0.00013972,2]
[332781262,1721518252002,-500.0,0.00013972,2]
[332781263,1721518252013,-500.0,0.00013972,2]
[332781264,1721518252024,-500.0,0.00013972,2]
[332781265,1721518252034,-1950.83,0.00013972,2]
[332781266,1721518252045,-521.45625736,0.00013972,2]
[332781267,1721518252055,-500.51009932,0.00013972,2]
[332781268,1721518252067,-500.0,0.00013972,2]
[332781269,1721518252078,-500.0,0.00013972,2]
[332781270,1721518252088,-1247.1,0.00013972,2]
[332781271,1721518252098,-500.0,0.00013972,2]
[332781272,1721518252107,-500.0,0.00013972,2]
[332781273,1721518252116,-502.63082264,0.00013972,2]
[332781274,1721518252125,-1876.93,0.00013972,2]
[332781275,1721518252134,-1764.74,0.00013972,2]
[332781276,1721518252143,-500.0,0.00013972,2]
[332781277,1721518252153,-503.04863189,0.00013972,2]
[332781278,1721518252163,-1616.59,0.00013972,2]
[332781279,1721518252172,-500.0,0.00013972,2]
[332781280,1721518252181,-500.0,0.00013972,2]
[332781281,1721518252190,-504.32763335,0.00013972,2]
[332781282,1721518252200,-500.0,0.00013972,2]
[332781283,1721518252209,-500.0,0.00013972,2]
[332781284,1721518252219,-2335.04,0.00013972,2]
[332781285,1721518252228,-555.37,0.00013972,2]
[332781286,1721518252238,-335.80325809,0.00013972,2]
[332781287,1721518252249,-500.0,0.00013972,2]
[332781288,1721518252260,-500.0,0.00013972,2]
[332781289,1721518252270,-500.0,0.00013972,2]
[332781290,1721518252282,-500.0,0.00013972,2]
[332781291,1721518252293,-517.79801418,0.00013972,2]
[332781292,1721518252304,-500.0,0.00013972,2]
[332781293,1721518252315,-500.0,0.00013972,2]
[332781294,1721518252326,-505.93712617,0.00013972,2]
[332781295,1721518252338,-685.01,0.00013972,2]
[332781296,1721518252350,-500.0,0.00013972,2]
[332781297,1721518252361,-753.04,0.00013972,2]
[332781298,1721518252377,-500.0,0.00013972,2]
[332781299,1721518252388,-500.0,0.00013972,2]
[332781300,1721518252397,-2675.51,0.00013972,2]
[332781301,1721518252406,-500.0,0.00013972,2]
[332781302,1721518252417,-498.27488213,0.00013972,2]
[332781303,1721518252426,-500.0,0.00013972,2]
[332781304,1721518252437,-501.43999562,0.00013972,2]
[332781305,1721518252450,-1042.84,0.00013972,2]
[332781306,1721518252460,-582.84323496,0.00013972,2]
[332781307,1721518252469,-500.0,0.00013972,2]
[332781308,1721518252479,-923.67,0.00013972,2]
[332781309,1721518252489,-2166.72,0.00013972,2]
[332781310,1721518252500,-500.0,0.00013972,2]
[332781311,1721518252512,-500.0,0.00013972,2]
[332781312,1721518252524,-849.12,0.00013972,2]
[332781313,1721518252535,-500.0,0.00013972,2]
[332781314,1721518252545,-500.0,0.00013972,2]
[332781315,1721518252555,-551.34285931,0.00013972,2]
[332781316,1721518252565,-1041.22,0.00013972,2]
[332781317,1721518252576,-500.0,0.00013972,2]
[332781318,1721518252587,-2104.59,0.00013972,2]
[332781319,1721518252597,-868.47,0.00013972,2]
[332781320,1721518252608,-500.0,0.00013972,2]
[332781321,1721518252618,-1307.06,0.00013972,2]
[332781322,1721518252628,-500.0,0.00013972,2]
[332781323,1721518252638,-653.69,0.00013972,2]
[332781324,1721518252649,-510.07389428,0.00013972,2]
[332781325,1721518252659,-500.0,0.00013972,2]
[332781326,1721518252669,-500.0,0.00013972,2]
[332781327,1721518252679,-500.0,0.00013972,2]
[332781328,1721518252689,-29094.81,0.00013972,2]
[332781329,1721518252699,-659.37,0.00013972,2]
[332781330,1721518252709,-506.95192731,0.00013972,2]
[332781331,1721518252719,-1419.88,0.00013972,2]
[332781332,1721518252729,-433.59797248,0.00013972,2]
[332781333,1721518252739,-660.14,0.00013972,2]
[332781334,1721518252749,-500.0,0.00013972,2]
[332781335,1721518252759,-3196.13,0.00013972,2]
[332781336,1721518252768,-500.0,0.00013972,2]
[332781337,1721518252778,-600.09,0.00013972,2]
[332781338,1721518252788,-1939.64,0.00013972,2]
[332781339,1721518252797,-171.07781714,0.00013972,2]
[332781340,1721518252807,-500.0,0.00013972,2]
[332781341,1721518252816,-7394.48,0.00013972,2]
[332781342,1721518252826,-499.97734961,0.00013972,2]
[332781343,1721518252835,-1650.73,0.00013972,2]
[332781344,1721518252845,-500.0,0.00013972,2]
[332781345,1721518252854,-1109.67,0.00013972,2]
[332781346,1721518252864,-611.01,0.00013972,2]
[332781347,1721518252873,-500.0,0.00013972,2]
[332781348,1721518252883,-1170.85,0.00013972,2]
[332781349,1721518252893,-500.0,0.00013972,2]
[332781350,1721518252904,-533.56,0.00013972,2]
[332781351,1721518252913,-500.0,0.00013972,2]
[332781352,1721518252923,-500.0,0.00013972,2]
[332781353,1721518252932,-539.75121852,0.00013972,2]
[332781354,1721518252943,-709.33,0.00013972,2]
[332781355,1721518252955,-656.72,0.00013972,2]
[332781356,1721518252965,-500.0,0.00013972,2]
[332781357,1721518252975,-810.53,0.00013972,2]
[332781358,1721518252984,-216.38158047,0.00013972,2]
[332781359,1721518252994,-511.02301535,0.00013972,2]
[332781360,1721518253003,-500.0,0.00013972,2]
[332781361,1721518253012,-500.0,0.00013972,2]
[332781362,1721518253022,-2255.54,0.00013972,2]
[332781363,1721518253031,-3429.36,0.00013972,2]
[332781364,1721518253041,-1252.85,0.00013972,2]
[332781365,1721518253051,-707.47,0.00013972,2]
[332781366,1721518253060,-4215.35,0.00013972,2]
[332781367,1721518253070,-8367.53,0.00013972,2]
[332781368,1721518253079,-500.0,0.00013972,2]
[332781369,1721518253089,-500.0,0.00013972,2]
[332781370,1721518253098,-614.62,0.00013972,2]
[332781371,1721518253107,-5601.84,0.00013972,2]
[332781372,1721518253117,-500.0,0.00013972,2]
[332781373,1721518253127,-2579.67,0.00013972,2]
[332781374,1721518253137,-16858.36,0.00013972,2]
[332781375,1721518253146,-500.0,0.00013972,2]
[332781376,1721518253156,-500.0,0.00013972,2]
[332781377,1721518253166,-500.0,0.00013972,2]
[332781378,1721518253176,-500.0,0.00013972,2]
[332781379,1721518253186,-5035.15,0.00013972,2]
[332781380,1721518253196,-606.41,0.00013972,2]
[332781381,1721518253205,-2959.08,0.00013972,2]
[332781382,1721518253215,-1140.724597,0.00013972,2]
[332781383,1721518253225,-521.4783236,0.00013972,2]
[332781384,1721518253234,-1140.724597,0.00013972,2]
[332781385,1721518253244,-1140.724597,0.00013972,2]
[332781386,1721518253253,-501.52214706,0.00013972,2]
[332781387,1721518253263,-1140.724597,0.00013972,2]
[332781388,1721518253272,-1140.724597,0.00013972,2]
[332781389,1721518253283,-1140.724597,0.00013972,2]
[332781390,1721518253292,-2795.92,0.00013972,2]
[332781391,1721518253301,-1034.77,0.00013972,2]
[332781392,1721518253311,-7401.26,0.00013972,2]
[332781393,1721518253322,-651.55,0.00013972,2]
[332781394,1721518253332,-2103.65,0.00013972,2]
[332781395,1721518253342,-910.55,0.00013972,2]
[332781396,1721518253352,-2044.79,0.00013972,2]
[332781397,1721518253362,-500.0,0.00013972,2]
[332781398,1721518253378,-627.68,0.00013972,2]
[332781399,1721518253387,-500.0,0.00013972,2]
[332781400,1721518253397,-500.0,0.00013972,2]
[332781401,1721518253407,-500.0,0.00013972,2]
[332781402,1721518253417,-471.65661398,0.00013972,2]
[332781403,1721518253427,-3024.99,0.00013972,2]
[332781404,1721518253437,-500.0,0.00013972,2]
[332781405,1721518253447,-643.71,0.00013972,2]
[332781406,1721518253458,-1260.72,0.00013972,2]
[332781407,1721518253467,-500.0,0.00013972,2]
[332781408,1721518253477,-500.0,0.00013972,2]
[332781409,1721518253488,-500.0,0.00013972,2]
[332781410,1721518253498,-500.0,0.00013972,2]
[332781411,1721518253508,-4419.49,0.00013972,2]
[332781412,1721518253517,-946.75,0.00013972,2]
[332781413,1721518253527,-1460.09,0.00013972,2]
[332781414,1721518253537,-500.0,0.00013972,2]
[332781415,1721518253546,-500.0,0.00013972,2]
[332781416,1721518253556,-1022.55,0.00013972,2]
[332781417,1721518253565,-564.97,0.00013972,2]
[332781418,1721518253575,-10729.85,0.00013972,2]
[332781419,1721518253584,-500.96592398,0.00013972,2]
[332781420,1721518253594,-500.0,0.00013972,2]
[332781421,1721518253604,-500.0,0.00013972,2]
[332781422,1721518253614,-698.84,0.00013972,2]
[332781423,1721518253623,-500.0,0.00013972,2]
[332781424,1721518253633,-1312.77,0.00013972,2]
[332781425,1721518253643,-1885.9,0.00013972,2]
[332781426,1721518253653,-453.62559309,0.00013972,2]
[332781427,1721518253664,-1146.43,0.00013972,2]
[332781428,1721518253675,-1491.218364,0.00013972,2]
[332781429,1721518253685,-1491.218364,0.00013972,2]
[332781430,1721518253695,-1902.53,0.00013972,2]
[332781431,1721518253705,-500.0,0.00013972,2]
[332781432,1721518253716,-594.76,0.00013972,2]
[332781433,1721518253726,-1491.218364,0.00013972,2]
[332781434,1721518253736,-1491.218364,0.00013972,2]
[332781435,1721518253746,-500.0,0.00013972,2]
[332781436,1721518253756,-500.0,0.00013972,2]
[332781437,1721518253766,-3665.51,0.00013972,2]
[332781438,1721518253775,-585.64,0.00013972,2]
[332781439,1721518253785,-500.0,0.00013972,2]
[332781440,1721518253796,-2905.48,0.00013972,2]
[332781441,1721518253806,-500.0,0.00013972,2]
[332781442,1721518253817,-500.0,0.00013972,2]
[332781443,1721518253826,-1128.85,0.00013972,2]
[332781444,1721518253836,-500.0,0.00013972,2]
[332781445,1721518253845,-500.0,0.00013972,2]
[332781446,1721518253855,-510.0,0.00013972,2]
[332781447,1721518253865,-2809.91,0.00013972,2]
[332781448,1721518253875,-500.0,0.00013972,2]
[332781449,1721518253886,-520.92944104,0.00013972,2]
[332781450,1721518253896,-2317.96,0.00013972,2]
[332781451,1721518253906,-1045.11,0.00013972,2]
[332781452,1721518253916,-721.04,0.00013972,2]
[332781453,1721518253927,-1794.25,0.00013972,2]
[332781454,1721518253938,-560.67,0.00013972,2]
[332781455,1721518253948,-1349.61,0.00013972,2]
[332781456,1721518253959,-1663.61,0.00013972,2]
[332781457,1721518253968,-500.0,0.00013972,2]
[332781458,1721518253978,-925.61,0.00013972,2]
[332781459,1721518253989,-500.0,0.00013972,2]
[332781460,1721518253999,-500.0,0.00013972,2]
[332781461,1721518254009,-500.0,0.00013972,2]
[332781462,1721518254019,-13179.09,0.00013972,2]
[332781463,1721518254029,-1454.0,0.00013972,2]
[332781464,1721518254040,-1320.11,0.00013972,2]
[332781465,1721518254051,-4790.27,0.00013972,2]
[332781466,1721518254061,-500.0,0.00013972,2]
[332781467,1721518254073,-500.0,0.00013972,2]
[332781468,1721518254083,-500.0,0.00013972,2]
[332781469,1721518254094,-500.0,0.00013972,2]
[332781470,1721518254103,-500.0,0.00013972,2]
[332781471,1721518254113,-500.0,0.00013972,2]
[332781472,1721518254123,-500.0,0.00013972,2]
[332781473,1721518254132,-500.0,0.00013972,2]
[332781474,1721518254141,-2300.07,0.00013972,2]
[332781475,1721518254153,-98.58370824,0.00013972,2]
[332781476,1721518254531,-2471.55629176,0.00013972,2]
[332781477,1721518254541,-8627.47,0.00013972,2]
[332781478,1721518254552,-999.23,0.00013972,2]
[332781479,1721518254563,-500.0,0.00013972,2]
[332781480,1721518254573,-695.22,0.00013972,2]
[332781481,1721518254583,-500.0,0.00013972,2]
[332781482,1721518254594,-500.0,0.00013972,2]
[332781483,1721518254605,-500.0,0.00013972,2]
[332781484,1721518254614,-500.0,0.00013972,2]
[332781485,1721518254624,-869.63,0.00013972,2]
[332781486,1721518254633,-659.12,0.00013972,2]
[332781487,1721518254643,-502.34205223,0.00013972,2]
[332781488,1721518254652,-500.0,0.00013972,2]
[332781489,1721518254662,-917.87,0.00013972,2]
[332781490,1721518254672,-500.0,0.00013972,2]
[332781491,1721518254681,-500.0,0.00013972,2]
[332781492,1721518254691,-500.0,0.00013972,2]
[332781493,1721518254700,-500.0,0.00013972,2]
[332781494,1721518254710,-413.72043881,0.00013972,2]
[332781495,1721518254719,-1975.93,0.00013972,2]
[332781496,1721518254729,-514.86,0.00013972,2]
[332781497,1721518254739,-500.0,0.00013972,2]
[332781498,1721518254750,-500.0,0.00013972,2]
[332781499,1721518254759,-460.21208408,0.00013972,2]
[332781500,1721518254769,-500.0,0.00013972,2]
[332781501,1721518254778,-803.42,0.00013972,2]
[332781502,1721518254788,-500.0,0.00013972,2]
[332781503,1721518254798,-500.0,0.00013972,2]
[332781504,1721518254807,-150.112233,0.00014,4]
[332781505,1721518254817,-150.112233,0.00014,2]
[332781506,1721518254827,-150.112233,0.00014,4]
[332781507,1721518254836,-150.112233,0.00014,2]
[332781508,1721518254846,-5303.4494987,0.00014047,2]
[332781509,1721518254855,-204.04832068,0.00014094,2]
[332781510,1721518254899,-4080.95920397,0.00014094,2]
[332781511,1721518254909,-150.112233,0.000141,4]
[332781512,1721518254919,-150.112233,0.000141,4]
[332781513,1721518254929,-150.112233,0.000141,4]
[332781514,1721518254939,-150.112233,0.000141,5]
[332781515,1721518254948,-201.6482789,0.00014103,2]
[332781516,1721518254958,-367.31035882,0.0001419,2]
[332781517,1721518254967,-150.112233,0.000142,3]
[332781518,1721518254977,-150.112233,0.000142,3]
[332781519,1721518254987,-150.112233,0.000142,4]
[332781520,1721518254997,-19695.53591975,0.00014246,5]
[332781521,1721518255439,-1000.0,0.00014246,5]
[332781522,1721518255454,-4289.39653402,0.00014246,5]
[332781523,1721518255464,-512.27304389,0.00014246,2]
[332781524,1721518255474,-500.0,0.00014246,2]
[332781525,1721518255484,-500.0,0.00014246,2]
[332781526,1721518255494,-500.0,0.00014246,2]
[332781527,1721518255504,-315.68744378,0.00014246,2]
[332781528,1721518255515,-504.399664,0.00014246,2]
[332781529,1721518255525,-500.0,0.00014246,2]
[332781530,1721518255536,-875.74,0.00014246,2]
[332781531,1721518255547,-500.0,0.00014246,2]
[332781532,1721518255556,-664.87338431,0.00014246,2]
[332781533,1721518255570,-270.14661569,0.00014246,2]
[332781534,1721518255579,-500.0,0.00014246,2]
[332781535,1721518255590,-500.0,0.00014246,2]
[332781536,1721518255600,-500.0,0.00014246,2]
[332781537,1721518255610,-787.98,0.00014246,2]
[332781538,1721518255620,-500.0,0.00014246,2]
[332781539,1721518255629,-1041.82,0.00014246,2]
[332781540,1721518255639,-775.48,0.00014246,2]
[332781541,1721518255650,-500.0,0.00014246,2]
[332781542,1721518255661,-597.78,0.00014246,2]
[332781543,1721518255671,-500.0,0.00014246,2]
[332781544,1721518255682,-503.50562691,0.00014246,2]
[332781545,1721518255692,-280.08026843,0.00014246,2]
[332781546,1721518255708,-219.91973157,0.00014246,2]
[332781547,1721518255718,-500.0,0.00014246,2]
[332781548,1721518255729,-500.0,0.00014246,2]
[332781549,1721518255740,-500.0,0.00014246,2]
[332781550,1721518255750,-683.35,0.00014246,2]
[332781551,1721518255760,-500.0,0.00014246,2]
[332781552,1721518255771,-332.19300314,0.00014246,2]
[332781553,1721518255782,-500.0,0.00014246,2]
[332781554,1721518255793,-350.46237376,0.00014246,2]
[332781555,1721518255807,-164.44397908,0.00014246,2]
[332781556,1721518255818,-500.0,0.00014246,2]
[332781557,1721518255828,-500.0,0.00014246,2]
[332781558,1721518255838,-500.0,0.00014246,2]
[332781559,1721518255848,-500.0,0.00014246,2]
[332781560,1721518255858,-1106.5,0.00014246,2]
[332781561,1721518255868,-500.0,0.00014246,2]
[332781562,1721518255878,-500.0,0.00014246,2]
[332781563,1721518255887,-926.64,0.00014246,2]
[332781564,1721518255897,-500.0,0.00014246,2]
[332781565,1721518255907,-170.72705745,0.00014246,2]
[332781566,1721518255918,-500.0,0.00014246,2]
[332781567,1721518255928,-500.0,0.00014246,2]
[332781568,1721518255940,-500.0,0.00014246,2]
[332781569,1721518255950,-500.0,0.00014246,2]
[332781570,1721518255961,-500.0,0.00014246,2]
[332781571,1721518255970,-500.0,0.00014246,2]
[332781572,1721518255980,-571.29,0.00014246,2]
[332781573,1721518255990,-500.0,0.00014246,2]
[332781574,1721518256001,-500.0,0.00014246,2]
[332781575,1721518256010,-500.0,0.00014246,2]
[332781576,1721518256021,-175.92461316,0.00014246,2]
[332781577,1721518256031,-500.0,0.00014246,2]
[332781578,1721518256042,-628.6,0.00014246,2]
[332781579,1721518256053,-500.0,0.00014246,2]
[332781580,1721518256064,-541.82935569,0.00014246,2]
[332781581,1721518256075,-500.0,0.00014246,2]
[332781582,1721518256085,-502.95614404,0.00014246,2]
[332781583,1721518256097,-507.85484977,0.00014246,2]
[332781584,1721518256108,-500.0,0.00014246,2]
[332781585,1721518256119,-500.0,0.00014246,2]
[332781586,1721518256129,-500.0,0.00014246,2]
[332781587,1721518256139,-500.0,0.00014246,2]
[332781588,1721518256150,-506.11616401,0.00014246,2]
[332781589,1721518256163,-500.0,0.00014246,2]
[332781590,1721518256177,-618.28186363,0.00014246,2]
[332781591,1721518256187,-500.0,0.00014246,2]
[332781592,1721518256199,-500.0,0.00014246,2]
[332781593,1721518256209,-507.38946244,0.00014246,2]
[332781594,1721518256220,-500.0,0.00014246,2]
[332781595,1721518256231,-500.0,0.00014246,2]
[332781596,1721518256242,-500.0,0.00014246,2]
[332781597,1721518256253,-523.63,0.00014246,2]
[332781598,1721518256265,-182.99629275,0.00014246,2]
[332781599,1721518256276,-500.0,0.00014246,2]
[332781600,1721518256286,-500.0,0.00014246,2]
[332781601,1721518256297,-500.0,0.00014246,2]
[332781602,1721518256309,-500.0,0.00014246,2]
[332781603,1721518256320,-500.0,0.00014246,2]
[332781604,1721518256330,-500.0,0.00014246,2]
[332781605,1721518256340,-500.0,0.00014246,2]
[332781606,1721518256350,-801.96,0.00014246,2]
[332781607,1721518256360,-1559.97,0.00014246,2]
[332781608,1721518256373,-1115.34,0.00014246,2]
[332781609,1721518256384,-500.0,0.00014246,2]
[332781610,1721518256393,-500.0,0.00014246,2]
[332781611,1721518256403,-898.05,0.00014246,2]
[332781612,1721518256415,-500.0,0.00014246,2]
[332781613,1721518256427,-638.53,0.00014246,2]
[332781614,1721518256437,-500.0,0.00014246,2]
[332781615,1721518256448,-185.29238768,0.00014246,2]
[332781616,1721518256457,-2004.87,0.00014246,2]
[332781617,1721518256467,-500.0,0.00014246,2]
[332781618,1721518256477,-503.36826388,0.00014246,2]
[332781619,1721518256488,-500.0,0.00014246,2]
[332781620,1721518256498,-500.0,0.00014246,2]
[332781621,1721518256508,-500.0,0.00014246,2]
[332781622,1721518256518,-500.0,0.00014246,2]
[332781623,1721518256528,-2327.29,0.00014246,2]
[332781624,1721518256538,-500.0,0.00014246,2]
[332781625,1721518256548,-1178.7,0.00014246,2]
[332781626,1721518256558,-589.15,0.00014246,2]
[332781627,1721518256567,-500.0,0.00014246,2]
[332781628,1721518256577,-500.0,0.00014246,2]
[332781629,1721518256587,-500.0,0.00014246,2]
[332781630,1721518256597,-500.0,0.00014246,2]
[332781631,1721518256606,-295.29927215,0.00014246,2]
[332781632,1721518256617,-500.0,0.00014246,2]
[332781633,1721518256626,-500.0,0.00014246,2]
[332781634,1721518256636,-500.0,0.00014246,2]
[332781635,1721518256646,-500.0,0.00014246,2]
[332781636,1721518256655,-2007.06,0.00014246,2]
[332781637,1721518256665,-500.0,0.00014246,2]
[332781638,1721518256675,-629.05,0.00014246,2]
[332781639,1721518256685,-1517.91,0.00014246,2]
[332781640,1721518256695,-500.0,0.00014246,2]
[332781641,1721518256704,-608.4,0.00014246,2]
[332781642,1721518256714,-767.64,0.00014246,2]
[332781643,1721518256724,-500.0,0.00014246,2]
[332781644,1721518256734,-500.0,0.00014246,2]
[332781645,1721518256745,-589.05,0.00014246,2]
[332781646,1721518256754,-500.0,0.00014246,2]
[332781647,1721518256764,-698.04,0.00014246,2]
[332781648,1721518256774,-500.0,0.00014246,2]
[332781649,1721518256784,-508.54564734,0.00014246,2]
[332781650,1721518256794,-500.0,0.00014246,2]
[332781651,1721518256805,-2766.3,0.00014246,2]
[332781652,1721518256815,-500.0,0.00014246,2]
[332781653,1721518256825,-500.0,0.00014246,2]
[332781654,1721518256834,-577.81,0.00014246,2]
[332781655,1721518256845,-500.0,0.00014246,2]
[332781656,1721518256855,-2025.85,0.00014246,2]
[332781657,1721518256865,-500.0,0.00014246,2]
[332781658,1721518256875,-2922.57,0.00014246,2]
[332781659,1721518256885,-688.33,0.00014246,2]
[332781660,1721518256895,-500.0,0.00014246,2]
[332781661,1721518256904,-500.0,0.00014246,2]
[332781662,1721518256914,-500.0,0.00014246,2]
[332781663,1721518256924,-500.0,0.00014246,2]
[332781664,1721518256934,-662.51,0.00014246,2]
[332781665,1721518256944,-833.89,0.00014246,2]
[332781666,1721518256954,-500.0,0.00014246,2]
[332781667,1721518256965,-1186.22,0.00014246,2]
[332781668,1721518256975,-938.32,0.00014246,2]
[332781669,1721518256985,-2113.08,0.00014246,2]
[332781670,1721518256994,-500.0,0.00014246,2]
[332781671,1721518257004,-500.0,0.00014246,2]
[332781672,1721518257014,-500.0,0.00014246,2]
[332781673,1721518257023,-500.0,0.00014246,2]
[332781674,1721518257033,-500.0,0.00014246,2]
[332781675,1721518257044,-500.0,0.00014246,2]
[332781676,1721518257054,-500.0,0.00014246,2]
[332781677,1721518257064,-500.0,0.00014246,2]
[332781678,1721518257074,-808.88,0.00014246,2]
[332781679,1721518257084,-500.0,0.00014246,2]
[332781680,1721518257094,-1145.07,0.00014246,2]
[332781681,1721518257104,-500.0,0.00014246,2]